bitfinex-derivatives/quotes_ETHF0:USTF0_20250224
["timestamp","ask_amount","ask_price","bid_price","bid_amount"]
[1740430563626,0.0056592,2649.2,2648.9,3.208]
[1740430564126,0.2996839,2649.8,2649.1,3.96298]
[1740430564329,7.5212,2650.3,2649.5,3.2078]
[1740430564535,0.7551,2649.4,2649.0,3.211]
[1740430564732,1.88758,2649.7,2649.0,3.77]
[1740430564939,3.2078,2649.9,2649.2,3.2078]
[1740430565235,3.211,2650.0,2649.0,3.77]
[1740430565236,0.75518,2649.1,2649.0,0.559]
[1740430565436,3.2078,2649.3,2648.6,4.2977]
[1740430565637,0.75529,2648.7,2648.6,3.2078]
[1740430566037,0.75529,2648.8,2648.6,3.2078]
[1740430566344,0.75529,2648.7,2648.6,3.2078]
[1740430566537,6.98388,2649.0,2648.4,0.0056592]
[1740430566538,0.75535,2648.5,2648.4,0.0056592]
[1740430566936,0.75555,2647.8,2647.7,3.2078]
[1740430567138,0.29922814,2647.8,2647.1,3.2078]
[1740430567332,1.88914,2647.5,2646.9,0.5698]
[1740430567533,0.75578,2647.0,2646.9,0.5698]
[1740430567744,3.2078,2647.4,2646.8,3.7985]
[1740430568244,0.0056592,2647.4,2646.8,3.8041592]
[1740430568440,0.0056592,2647.4,2647.3,0.75569]
[1740430569739,0.0056592,2647.4,2647.2,3.2078]
[1740430569941,0.75572,2647.2,2647.1,0.5698]
[1740430570243,0.0056592,2647.4,2647.0,3.232]
[1740430570444,0.0056592,2647.4,2646.9,6.4398]
[1740430570645,0.75571,2647.3,2646.9,6.4398]
[1740430570841,0.75571,2647.3,2647.0,0.75577]
[1740430571042,0.75578,2647.0,2646.9,3.2078]
[1740430571939,0.75581,2646.9,2646.8,0.0056592]
[1740430572638,3.96361,2646.9,2646.8,0.0056592]
[1740430572838,9.96361,2646.9,2646.8,9.2e-06]
[1740430573543,10.02653454,2646.9,2646.8,9.2e-06]
[1740430573943,10.60383454,2646.9,2646.8,9.2e-06]
[1740430574145,10.54091,2646.9,2646.8,9.2e-06]
[1740430574346,10.6038321,2646.9,2646.8,9.2e-06]
[1740430574840,13.77491,2646.9,2646.8,9.2e-06]
[1740430575047,13.83783233,2646.9,2646.8,9.2e-06]
[1740430575443,7.83783233,2646.9,2646.8,9.2e-06]
[1740430575645,7.77491,2646.9,2646.8,9.2e-06]
[1740430576244,13.77491,2646.9,2646.8,9.2e-06]
[1740430577150,13.8378196,2646.9,2646.8,9.2e-06]
[1740430577448,7.77491,2646.9,2646.8,9.2e-06]
[1740430580341,0.75581,2646.9,2646.8,9.2e-06]
[1740430581145,3.228,2647.3,2646.8,9.2e-06]
[1740430581449,0.75581,2646.9,2646.8,9.2e-06]
[1740430581648,5.67026,2647.3,2646.8,9.2e-06]
[1740430581845,0.75581,2646.9,2646.8,9.2e-06]
[1740430582045,5.67026,2647.3,2646.8,9.2e-06]
[1740430582046,0.75579,2647.0,2646.8,9.2e-06]
[1740430582252,0.75576,2647.1,2646.8,0.7558292]
[1740430582450,1.88924,2647.3,2646.8,1.0935092]
[1740430582757,3.5152592,2647.4,2647.0,3.2078]
[1740430582947,0.75573,2647.2,2647.0,3.2078]
[1740430583145,0.75572,2647.2,2646.9,0.7558]
[1740430583349,2.9626592,2647.4,2647.0,3.2078]
[1740430583551,0.7557,2647.3,2647.0,3.96357]
[1740430583850,3.7183292,2647.4,2647.1,0.75574]
[1740430584052,2.9626592,2647.4,2647.3,3.2078]
[1740430584353,3.7183192,2647.4,2647.3,3.2078]
[1740430584742,2.9626592,2647.4,2647.0,3.2078]
[1740430584947,0.75581,2646.9,2646.8,1.0935092]
[1740430585148,0.75581,2646.9,2646.8,9.2e-06]
[1740430586052,5.1163,2647.3,2646.8,9.2e-06]
[1740430586446,5.1163,2647.3,2646.8,0.5764092]
[1740430586755,2.9626592,2647.4,2646.8,0.5764092]
[1740430587154,2.9626592,2647.4,2647.1,3.2078]
[1740430587355,0.75572,2647.2,2647.1,3.2078]
[1740430587655,0.7557,2647.3,2647.1,3.96354]
[1740430587848,2.9626592,2647.4,2647.1,3.2078]
[1740430588051,0.75572,2647.2,2647.1,3.2078]
[1740430588857,0.75572,2647.2,2646.9,0.5923]
[1740430588858,0.75578,2647.0,2646.9,0.5923]
[1740430589159,0.75581,2646.9,2646.8,9.2e-06]
[1740430590362,5.11824,2647.3,2646.8,0.7558392]
[1740430590655,1.8948592,2647.4,2646.9,0.7558]
[1740430590855,1.88927,2647.3,2646.8,0.7558192]
[1740430591062,0.0056592,2647.4,2647.0,3.2078]
[1740430591262,0.75575,2647.1,2647.0,3.2078]
[1740430591458,0.75575,2647.1,2647.0,3.7725]
[1740430592164,0.75569,2647.3,2647.0,4.52825]
[1740430592358,1.8948392,2647.4,2647.0,3.7725]
[1740430592559,0.75575,2647.1,2647.0,3.7725]
[1740430592764,0.0056592,2647.4,2647.0,3.7725]
[1740430593269,0.0056592,2647.4,2647.3,3.2078]
[1740430594154,0.5828,2648.2,2647.3,9.7798]
[1740430594361,1.88843,2648.5,2647.7,3.2078]
[1740430594656,0.75552,2647.9,2647.8,3.229]
[1740430595560,0.0056592,2648.1,2647.4,4.3233]
[1740430595769,0.75564,2647.5,2647.4,4.3233]
[1740430596859,5.64489,2648.0,2647.4,4.3233]
[1740430597055,0.75559,2647.7,2647.4,4.3233]
[1740430597260,5.64489,2648.0,2647.4,5.07894]
[1740430597464,0.7556,2647.7,2647.5,0.75562]
[1740430598156,0.7556,2647.7,2647.4,4.3233]
[1740430598362,0.75563,2647.6,2647.4,4.3233]
[1740430598559,0.75564,2647.5,2647.4,4.3233]
[1740430598762,3.7561,2648.0,2647.1,3.2078]
[1740430599063,0.75578,2647.0,2646.9,3.8036]
[1740430600260,0.75578,2647.0,2646.9,0.5776]
[1740430600455,0.75581,2646.9,2646.8,9.2e-06]
[1740430603460,1.06139646,2646.9,2646.8,9.2e-06]
[1740430603861,7.06139646,2646.9,2646.8,9.2e-06]
[1740430604277,9.52758646,2646.9,2645.8,3.7678]
[1740430604563,0.75609,2645.9,2645.8,0.56]
[1740430604768,1.88995,2646.3,2645.8,0.56]
[1740430604967,0.75609,2645.9,2645.8,1.31611]
[1740430605163,3.2078,2646.4,2645.8,0.56]
[1740430605164,3.7534,2646.4,2645.8,0.56]
[1740430605364,0.756,2646.3,2646.2,0.756]
[1740430605563,0.75602,2646.2,2646.1,0.75602]
[1740430605969,0.75602,2646.2,2646.1,3.96382]
[1740430606166,0.75602,2646.2,2646.1,3.2078]
[1740430609869,0.75601,2646.2,2646.1,3.2078]
[1740430610371,0.0056592,2646.4,2646.1,3.2078]
[1740430614975,0.0056592,2646.4,2646.2,0.5585]
[1740430615170,0.0056592,2646.4,2646.3,3.199]
[1740430619178,0.0056592,2646.4,2646.2,3.187]
[1740430620976,0.0056592,2646.4,2646.1,3.2078]
[1740430623783,3.2134592,2646.4,2645.6,0.0056592]
[1740430623985,3.2078,2645.9,2645.6,0.0056592]
[1740430624179,5.09805,2645.9,2645.6,9.2e-06]
[1740430624382,0.75615,2645.7,2645.6,9.2e-06]
[1740430624680,0.75644,2644.7,2644.6,3.2078]
[1740430625382,5.09849,2645.3,2644.6,3.2078]
[1740430625383,3.2078,2645.3,2644.6,3.2078]
[1740430625680,0.00567011,2645.2,2645.1,0.75632]
[1740430625876,3.2078,2646.3,2645.1,3.2078]
[1740430626176,0.75615,2645.7,2645.6,3.2078]
[1740430626385,0.75629,2645.3,2645.1,0.75631]
[1740430626574,0.75628,2645.3,2645.1,0.75631]
[1740430626776,0.75622,2645.5,2645.3,0.75626]
[1740430627078,0.00567011,2645.7,2645.3,3.2078]
[1740430627381,0.00567011,2645.7,2645.6,3.96398]
[1740430630484,0.00567011,2645.7,2645.6,7.15598]
[1740430631675,0.00567011,2645.7,2645.6,6.3948]
[1740430631881,0.76182011,2645.7,2645.6,6.3948]
[1740430632075,0.76182011,2645.7,2645.6,3.2078]
[1740430632489,0.75618,2645.6,2645.5,3.186]
[1740430632686,0.76184011,2645.7,2645.5,3.186]
[1740430632989,0.75618,2645.6,2645.5,3.186]
[1740430633190,0.75621,2645.5,2645.4,1.165]
[1740430633388,0.75624,2645.4,2645.3,3.2078]
[1740430633586,1.32274,2645.4,2645.3,3.2078]
[1740430634289,0.5665,2645.4,2645.0,3.96414]
[1740430634488,0.75632,2645.1,2645.0,3.2078]
[1740430634684,0.75632,2645.1,2645.0,3.96415]
[1740430634885,0.75632,2645.1,2645.0,3.2078]
[1740430635086,0.75631,2645.2,2645.0,3.96415]
[1740430635286,0.75632,2645.1,2645.0,3.96415]
[1740430635484,0.75632,2645.1,2645.0,3.2078]
[1740430635885,2.45713,2645.4,2644.7,5.09189011]
[1740430636084,0.75638,2645.0,2644.8,0.75641]
[1740430636280,0.75638,2644.9,2644.7,4.33547011]
[1740430636484,0.75641,2644.8,2644.7,0.00567011]
[1740430637092,0.75641,2644.8,2644.7,0.76211011]
[1740430637385,0.5503,2645.2,2644.7,0.00567011]
[1740430637692,0.75639,2644.9,2644.7,0.76208011]
[1740430637991,2.44109,2645.2,2644.9,0.75635]
[1740430637992,0.75633,2645.1,2644.9,0.75635]
[1740430638189,0.75634,2645.1,2644.9,3.96415]
[1740430638488,0.5503,2645.2,2644.9,3.2078]
[1740430638489,0.75635,2645.0,2644.9,3.2078]
[1740430638685,0.75641,2644.8,2644.7,0.00567011]
[1740430639885,1.29441,2644.8,2644.7,0.00567011]
[1740430640194,1.8911,2644.7,2644.0,3.2078]
[1740430640397,0.75661,2644.1,2644.0,3.96443]
[1740430640692,1.89126,2644.5,2644.0,3.2078]
[1740430640888,0.75661,2644.1,2644.0,3.96441]
[1740430641090,0.75661,2644.1,2644.0,3.2078]
[1740430641486,0.00567011,2644.3,2644.0,0.75662]
[1740430641690,0.75662,2644.1,2644.0,3.2078]
[1740430641991,0.75667,2643.9,2643.8,0.00567011]
[1740430642184,6.99116,2643.9,2642.8,3.2078]
[1740430642492,0.538,2644.0,2642.5,3.7931]
[1740430642493,1.8921,2643.3,2642.5,3.7931]
[1740430642693,8.29987,2643.4,2642.5,3.7931]
[1740430642993,1.89229,2643.1,2642.4,3.202]
[1740430643298,0.75712,2642.3,2642.2,3.2078]
[1740430643891,0.00567011,2642.5,2641.7,3.2078]
[1740430644097,0.00567011,2642.5,2641.7,3.96508]
[1740430644388,0.75727,2641.8,2641.7,3.2078]
[1740430644589,3.21467011,2642.5,2641.7,3.2078]
[1740430644787,0.75725,2641.9,2641.7,3.2078]
[1740430644987,0.75727,2641.8,2641.7,3.2078]
[1740430645183,3.2078,2641.9,2640.9,11.76369319]
[1740430645385,3.2078,2641.9,2640.9,11.46635948]
[1740430645591,3.2078,2642.1,2641.4,3.2078]
[1740430645785,3.2078,2642.1,2641.1,4.4206]
[1740430645786,3.2078,2642.1,2641.3,3.2078]
[1740430646000,3.2078,2642.1,2641.1,38.0206]
[1740430646196,3.2078,2642.1,2641.3,3.2078]
[1740430646394,0.75726,2641.9,2641.4,0.75738]
[1740430646790,3.2078,2642.1,2641.3,3.2078]
[1740430647189,0.75725,2641.9,2641.4,0.75737]
[1740430647489,3.2078,2642.1,2641.3,3.2078]
[1740430647699,3.96491,2642.4,2641.6,3.2078]
[1740430647991,3.2078,2642.4,2641.6,3.269]
[1740430648192,3.2078,2642.4,2641.5,3.2078]
[1740430648495,3.27267011,2642.5,2641.1,34.7526]
[1740430648496,3.2078,2642.1,2641.2,3.2078]
[1740430648694,3.2078,2641.8,2641.2,3.96523]
[1740430648992,3.2078,2641.8,2641.2,3.2078]
[1740430649590,0.75734,2641.6,2641.3,0.75741]
[1740430649895,3.2078,2641.8,2641.1,4.4246]
[1740430649896,0.7574,2641.4,2641.1,4.4246]
[1740430650094,0.75736,2641.5,2641.2,0.75744]
[1740430650298,0.75739,2641.4,2641.1,5.18205]
[1740430650592,3.2078,2641.8,2641.1,4.4246]
[1740430650792,3.2078,2642.2,2641.2,3.2078]
[1740430650992,3.2078,2642.2,2641.1,4.4246]
[1740430650993,3.96497,2642.2,2641.5,5.10114]
[1740430651288,0.5703,2642.3,2641.8,0.75724]
[1740430651497,0.75716,2642.2,2641.5,6.4888]
[1740430651797,0.75716,2642.2,2641.9,0.75723]
[1740430651993,3.2078,2642.1,2641.5,5.17436]
[1740430652198,3.2078,2642.1,2641.5,3.281]
[1740430652694,3.2078,2642.1,2641.9,0.75723]
[1740430653092,0.75722,2642.0,2641.6,33.6]
[1740430653297,0.75721,2642.0,2641.7,0.75729]
[1740430653498,3.2078,2642.1,2641.6,0.75731]
[1740430653814,3.2078,2642.1,2641.5,3.281]
[1740430653996,0.75726,2641.9,2641.6,0.75731]
[1740430654195,3.2078,2642.1,2641.5,3.281]
[1740430654196,0.75728,2641.8,2641.5,3.281]
[1740430654405,0.75725,2641.9,2641.6,0.75731]
[1740430654599,0.75723,2642.0,2641.5,3.281]
[1740430654801,0.75725,2641.9,2641.7,0.75729]
[1740430655104,3.2078,2642.1,2641.5,3.281]
[1740430655504,0.75723,2642.0,2641.7,0.75728]
[1740430655798,0.75725,2641.9,2641.7,0.75729]
[1740430656197,2.957,2642.0,2641.5,3.281]
[1740430656900,2.957,2642.0,2641.7,0.75728]
[1740430657104,0.75725,2641.9,2641.7,0.75728]
[1740430657401,0.75724,2641.9,2641.7,0.75728]
[1740430657598,3.2078,2642.4,2641.9,0.75724]
[1740430657793,3.2078,2642.4,2641.9,3.261]
[1740430657992,0.75718,2642.2,2642.0,0.75719]
[1740430658204,3.2078,2642.4,2641.9,3.261]
[1740430658399,0.76276011,2642.5,2642.3,0.75711]
[1740430658601,0.75718,2642.2,2642.0,0.7572]
[1740430658797,0.00567011,2642.5,2641.9,3.8474]
[1740430658995,0.75711,2642.4,2642.2,0.75715]
[1740430659201,0.75711,2642.4,2641.9,3.8474]
[1740430659398,0.75713,2642.3,2642.1,0.75717]
[1740430659698,0.76276011,2642.5,2642.2,0.75714]
[1740430659899,0.00567011,2642.5,2641.9,3.8474]
[1740430660503,0.75713,2642.3,2642.1,0.75716]
[1740430660703,0.7571,2642.4,2642.2,0.75713]
[1740430661099,0.75713,2642.3,2642.1,0.75717]
[1740430661304,0.00567011,2642.5,2642.2,0.75715]
[1740430661504,0.75711,2642.4,2642.2,0.75715]
[1740430661703,0.75711,2642.4,2641.9,5.74048]
[1740430661904,0.75711,2642.4,2642.2,0.75714]
[1740430662103,0.00567011,2642.5,2641.9,3.8474]
[1740430662403,0.00567011,2642.5,2642.0,3.2078]
[1740430662909,0.00567011,2642.5,2642.3,3.2078]
[1740430663103,0.00567011,2642.5,2642.4,0.5526]
[1740430663304,0.00567011,2642.5,2642.4,3.7976]
[1740430663603,0.5541,2643.3,2642.4,3.7976]
[1740430663801,3.2078,2643.2,2642.6,3.2078]
[1740430664001,0.5541,2643.3,2642.6,3.2078]
[1740430664204,0.29609065,2643.4,2642.6,3.2078]
[1740430664506,3.2078,2643.5,2642.6,3.2078]
[1740430664703,0.00567011,2643.3,2642.7,0.00567011]
[1740430665810,0.00567011,2643.3,2642.7,0.55337011]
[1740430666009,3.2078,2643.2,2642.7,0.00567011]
[1740430666201,3.2078,2642.9,2642.7,0.00567011]
[1740430670310,3.2078,2643.2,2642.7,0.00567011]
[1740430670812,3.2078,2642.9,2642.7,0.00567011]
[1740430672211,1.7433,2642.8,2641.9,1.1528]
[1740430672409,3.2078,2642.2,2641.3,3.2078]
[1740430672605,3.2078,2641.9,2641.4,0.5914]
[1740430673312,0.75738,2641.4,2641.3,0.5614]
[1740430673512,3.2078,2641.5,2641.0,24.244]
[1740430674011,0.75743,2641.3,2641.1,0.75746]
[1740430674213,3.2078,2641.5,2641.0,3.252]
[1740430674513,0.75739,2641.4,2641.2,0.75742]
[1740430674806,3.2078,2641.8,2641.7,0.7573]
[1740430675014,0.00567011,2641.9,2641.8,0.75727]
[1740430675207,0.00567011,2641.9,2641.7,3.254]
[1740430675712,0.00567011,2641.9,2641.8,0.75727]
[1740430675913,0.00567011,2641.9,2641.6,0.5894]
[1740430676116,0.00567011,2641.9,2641.7,0.75729]
[1740430676414,0.00567011,2641.9,2641.6,0.5894]
[1740430676610,0.00567011,2641.9,2641.7,0.75728]
[1740430676807,0.00567011,2641.9,2641.8,0.75727]
[1740430678108,0.00567011,2641.9,2641.7,3.253]
[1740430678311,0.00567011,2641.9,2641.7,4.01029]
[1740430678611,0.00567011,2641.9,2641.6,0.5894]
[1740430678813,0.00567011,2641.9,2641.7,4.00728]
[1740430679009,0.00567011,2641.9,2641.7,3.25]
[1740430679010,0.76293011,2641.9,2641.7,3.25]
[1740430679515,0.76291011,2641.9,2641.7,4.00729]
[1740430680113,0.00567011,2641.9,2641.7,3.25]
[1740430680313,0.00567011,2641.9,2641.6,3.7972]
[1740430680516,0.00567011,2641.9,2641.8,0.75727]
[1740430681911,0.00567011,2641.9,2641.6,3.7972]
[1740430682111,0.7575,2641.0,2640.8,0.75754]
[1740430682313,5.10154,2641.1,2640.3,1.35351777]
[1740430682616,1.89371,2641.1,2640.3,2.47171777]
[1740430682910,0.75754,2640.9,2640.3,1.1182]
[1740430683110,0.75751,2641.0,2640.6,0.75759]
[1740430683316,3.2078,2641.2,2640.4,3.2078]
[1740430683519,3.2078,2641.2,2640.6,0.75761]
[1740430683712,0.75751,2641.0,2640.4,3.2078]
[1740430683912,3.2078,2641.2,2640.4,3.2078]
[1740430684114,0.75327829,2641.1,2640.8,0.75753]
[1740430684314,3.2078,2641.2,2640.8,0.75753]
[1740430684515,3.2078,2641.2,2640.4,5.10194]
[1740430684715,0.00567011,2641.9,2641.5,0.75735]
[1740430684716,3.2078,2641.6,2641.5,0.75735]
[1740430685116,3.97072011,2641.9,2641.3,3.2078]
[1740430685311,3.21347011,2641.9,2641.4,33.6]
[1740430685511,3.21347011,2641.9,2641.3,5.643]
[1740430685512,3.2078,2641.8,2641.3,2.4352]
[1740430685709,0.00567011,2641.9,2641.8,0.75727]
[1740430686319,0.00567011,2641.9,2641.8,3.96507]
[1740430686522,0.00567011,2641.9,2641.5,6.4668]
[1740430686817,0.75727,2641.8,2641.5,4.01633]
[1740430687017,3.21347011,2641.9,2641.3,0.5417]
[1740430687217,3.21347011,2641.9,2641.4,0.75737]
[1740430687417,0.75728,2641.8,2641.5,0.75735]
[1740430687711,3.21347011,2641.9,2641.3,3.7495]
[1740430687915,3.97072011,2641.9,2641.6,0.75731]
[1740430688922,0.75728,2641.8,2641.5,0.75734]
[1740430689120,0.75738,2641.4,2641.3,0.5417]
[1740430689321,0.75736,2641.5,2641.3,0.5417]
[1740430689813,3.21347011,2641.9,2641.3,0.5417]
[1740430690010,0.75738,2641.4,2641.3,0.5417]
[1740430690221,0.7575,2641.0,2640.9,3.25]
[1740430690418,3.2078,2641.4,2640.9,4.00751]
[1740430690618,0.75745,2641.2,2640.9,0.75751]
[1740430690814,5.10129,2641.4,2640.6,3.7904]
[1740430691019,3.2078,2641.4,2640.6,3.7904]
[1740430691223,5.10131,2641.4,2640.6,3.7904]
[1740430691519,3.2078,2641.1,2640.6,0.5384]
[1740430691826,0.75756,2640.8,2640.6,1.29601]
[1740430692228,0.75752,2641.0,2640.7,0.75756]
[1740430692422,3.2078,2641.1,2640.6,0.5384]
[1740430692622,3.2078,2641.4,2640.6,7.0032]
[1740430692828,3.2078,2641.4,2641.3,0.75741]
[1740430693124,0.5795,2642.2,2640.6,3.7954]
[1740430693125,3.97073011,2641.9,2641.6,0.75731]
[1740430693322,0.75728,2641.8,2641.3,1.131]
[1740430693533,2.957,2641.8,2641.7,0.7573]
[1740430694618,0.00567011,2641.9,2641.6,3.2078]
[1740430694822,0.00567011,2641.9,2641.8,0.75727]
[1740430695736,0.76291011,2641.9,2641.7,0.75729]
[1740430695929,0.00567011,2641.9,2641.8,0.75727]
[1740430696730,3.2078,2643.2,2642.0,1.89297]
[1740430696935,0.757,2642.8,2642.5,0.75706]
[1740430697236,3.2078,2643.2,2642.5,3.257]
[1740430697630,3.96468,2643.2,2642.6,3.2078]
[1740430697832,0.76257011,2643.1,2642.6,3.21347011]
[1740430698035,3.2078,2642.8,2642.6,0.00567011]
[1740430698229,0.75697,2642.9,2642.6,0.00567011]
[1740430698431,3.21347011,2643.1,2642.6,0.00567011]
[1740430698728,3.97036011,2643.1,2642.8,0.75696]
[1740430698934,3.21347011,2643.1,2643.0,0.75692]
[1740430699233,5.10573011,2643.1,2642.6,0.00567011]
[1740430699433,3.21347011,2643.1,2642.6,0.00567011]
[1740430699829,3.21347011,2643.1,2642.9,0.75695]
[1740430700138,3.21347011,2643.1,2642.6,0.54147011]
[1740430700632,0.75701,2642.7,2642.6,0.00567011]
[1740430700824,3.97038011,2643.1,2642.6,0.00567011]
[1740430701028,3.21347011,2643.1,2642.6,0.00567011]
[1740430701332,3.97039011,2643.1,2642.8,0.75698]
[1740430701630,3.97037011,2643.1,2642.6,0.00567011]
[1740430701826,3.21347011,2643.1,2642.6,3.26467011]
[1740430702030,3.97038011,2643.1,2642.6,3.26467011]
[1740430702231,3.21347011,2643.1,2642.6,3.26467011]
[1740430702444,0.75701,2642.7,2642.6,0.00567011]
[1740430702738,3.2078,2642.8,2642.7,0.75701]
[1740430703632,0.00567011,2643.1,2642.6,0.00567011]
[1740430703838,0.75693,2643.0,2642.7,0.75699]
[1740430704042,0.00567011,2643.1,2642.6,0.00567011]
[1740430704233,0.75694,2643.0,2642.7,0.75699]
[1740430704437,0.76258011,2643.1,2642.6,0.00567011]
[1740430704634,0.00567011,2643.1,2642.6,0.00567011]
[1740430705034,0.00567011,2643.1,2642.8,0.75697]
[1740430705238,0.00567011,2643.1,2642.6,0.00567011]
[1740430705435,0.75696,2642.9,2642.7,0.757]
[1740430705638,0.75699,2642.8,2642.6,0.76269011]
[1740430705940,0.75693,2643.0,2642.8,0.75696]
[1740430706533,0.75695,2642.9,2642.6,0.00567011]
[1740430706731,0.75696,2642.9,2642.6,0.00567011]
[1740430706937,0.75696,2642.9,2642.7,0.757]
[1740430707438,0.75695,2643.0,2642.7,0.757]
[1740430707633,3.2078,2642.9,2642.6,0.00567011]
[1740430707838,0.75701,2642.7,2642.6,0.00567011]
[1740430708138,6.4508,2642.9,2641.6,3.2078]
[1740430708442,5.10063,2642.3,2641.7,3.243]
[1740430708631,0.75723,2642.0,2641.7,0.75727]
[1740430708830,0.75723,2642.0,2641.6,3.244]
[1740430709036,3.2078,2642.3,2641.6,3.244]
[1740430709240,3.2078,2642.0,2641.5,1.1388]
[1740430709439,3.2078,2642.3,2641.5,1.1388]
[1740430709740,0.75722,2642.0,2641.8,0.75726]
[1740430709944,0.7572,2642.1,2641.5,3.03216]
[1740430710131,3.2078,2642.3,2641.5,1.1388]
[1740430710337,5.10065,2642.3,2641.5,1.1388]
[1740430710637,0.75724,2641.9,2641.7,0.75728]
[1740430711044,3.2078,2642.3,2641.5,1.1388]
[1740430711253,0.75723,2642.0,2641.8,0.75725]
[1740430711445,0.75725,2641.9,2641.7,0.75728]
[1740430712144,5.10066,2642.3,2641.5,1.1388]
[1740430712145,3.2078,2642.3,2641.5,1.1388]
[1740430712946,3.2078,2642.3,2641.5,4.3698]
[1740430714946,3.2078,2642.3,2641.6,3.2078]
[1740430715152,3.2078,2642.7,2642.2,3.2078]
[1740430715351,3.2078,2642.9,2642.3,4.3499]
[1740430715652,3.2078,2642.9,2642.3,1.1229]
[1740430715956,3.2078,2642.6,2641.8,3.234]
[1740430716144,0.75698,2642.8,2641.8,10.22812]
[1740430716351,0.75698,2642.8,2642.6,0.75702]
[1740430716559,0.75702,2642.7,2642.5,0.75705]
[1740430717055,3.2078,2642.9,2642.5,0.75705]
[1740430717354,0.757,2642.8,2642.6,0.75704]
[1740430717746,0.75699,2642.8,2642.3,0.5361]
[1740430718148,3.96476,2642.9,2642.7,0.757]
[1740430718550,0.75698,2642.8,2642.5,0.75705]
[1740430719151,3.2078,2642.9,2642.4,0.5591]
[1740430719550,0.00567011,2643.1,2642.5,3.2078]
[1740430719854,0.00567011,2643.1,2642.6,3.23]
[1740430720047,0.76258011,2643.1,2642.9,0.75694]
[1740430720253,0.00567011,2643.1,2642.6,3.23]
[1740430720449,0.00567011,2643.1,2643.0,0.75692]
[1740430721748,0.00567011,2643.1,2643.0,3.98092]
[1740430722551,0.76256011,2643.1,2643.0,3.224]
[1740430722953,0.00567011,2643.1,2643.0,3.98092]
[1740430724351,0.00567011,2643.1,2643.0,9.224]
[1740430724554,3.2078,2643.8,2643.0,6.0]
[1740430724753,3.2078,2643.1,2642.4,0.5591]
[1740430725253,3.2078,2643.1,2642.7,0.75699]
[1740430725254,0.75693,2643.0,2642.7,0.75699]
[1740430725459,0.75707,2642.5,2642.4,0.5591]
[1740430725647,3.2078,2642.8,2642.4,0.5591]
[1740430725854,3.2078,2642.5,2642.2,0.00567011]
[1740430726055,0.75712,2642.3,2642.2,0.00567011]
[1740430727555,3.2078,2642.5,2642.2,0.00567011]
[1740430728354,0.75712,2642.3,2642.2,0.00567011]
[1740430729151,4.3363,2642.9,2642.2,0.00567011]
[1740430729355,4.3363,2642.9,2642.3,1.89282]
[1740430729562,4.3363,2642.9,2642.6,0.75702]
[1740430729758,0.75699,2642.8,2642.6,0.75702]
[1740430730058,4.3363,2642.9,2642.3,2.44951]
[1740430730059,3.2078,2642.9,2642.3,2.44951]
[1740430730264,0.75712,2642.3,2642.2,0.00567011]
[1740430730459,3.96492,2642.3,2642.2,0.00567011]
[1740430731060,12.4518,2642.3,2640.9,36.8078]
[1740430731361,3.2078,2641.5,2640.9,0.75752]
[1740430731563,0.75742,2641.3,2641.1,0.75746]
[1740430731753,6.4628,2641.5,2640.8,0.5797]
[1740430731959,6.4628,2641.5,2640.9,0.75752]
[1740430732155,6.46847011,2641.5,2640.8,0.5797]
[1740430732668,0.00567011,2641.5,2641.4,0.75738]
[1740430733358,0.00567011,2641.5,2641.3,0.7574]
[1740430733562,0.00567011,2641.5,2640.9,3.2078]
[1740430734265,0.76303011,2641.5,2641.2,0.75743]
[1740430734465,0.00567011,2641.5,2641.3,0.7574]
[1740430734666,0.76303011,2641.5,2641.2,0.75742]
[1740430734865,0.00567011,2641.5,2641.3,0.75741]
[1740430735067,0.00567011,2641.5,2640.9,3.2078]
[1740430735263,0.00567011,2641.5,2641.4,0.75738]
[1740430736368,3.2078,2642.5,2641.7,1.89318]
[1740430736569,3.2078,2642.5,2642.1,0.75718]
[1740430736767,3.96489,2642.5,2642.1,0.75718]
[1740430736960,0.75711,2642.4,2642.1,0.75718]
[1740430737467,0.75712,2642.4,2642.1,0.75718]
[1740430737666,0.76279011,2642.4,2642.1,0.75718]
[1740430737868,0.75713,2642.3,2642.1,0.75718]
[1740430738066,0.00567011,2642.4,2642.1,0.75718]
[1740430738864,0.00567011,2642.4,2642.1,1.33518]
[1740430739565,0.00567011,2642.4,2642.1,4.58318]
[1740430740362,0.00567011,2642.4,2642.3,0.75712]
[1740430740571,0.00567011,2642.4,2642.3,3.247]
[1740430740768,0.00567011,2642.4,2642.3,4.00412]
[1740430740963,0.00567011,2642.4,2642.1,0.578]
[1740430741168,0.00567011,2642.4,2642.3,0.75712]
[1740430741771,0.00567011,2642.4,2642.3,3.96492]
[1740430743173,0.00567011,2642.4,2642.3,0.75712]
[1740430743568,0.00567011,2642.4,2642.1,1.33517]
[1740430743874,0.75715,2642.2,2642.1,3.823]
[1740430744061,0.00567011,2642.4,2642.1,3.823]
[1740430744265,0.76277011,2642.4,2642.1,3.823]
[1740430744473,0.76277011,2642.4,2642.2,0.75714]
[1740430744474,0.00567011,2642.4,2642.2,0.75714]
[1740430744667,0.00567011,2642.4,2642.1,3.823]
[1740430744970,0.75715,2642.2,2642.1,3.245]
[1740430745275,0.75721,2642.0,2641.9,0.00567011]
[1740430745569,3.2078,2642.3,2641.9,0.00567011]
[1740430746073,0.7572,2642.1,2641.9,0.00567011]
[1740430746271,0.75721,2642.0,2641.9,0.00567011]
[1740430746871,1.89319,2641.8,2641.1,7.5781]
[1740430747073,3.9651,2641.7,2641.4,0.75736]
[1740430747375,3.2078,2641.7,2641.1,1.1313]
[1740430747570,3.2078,2641.7,2641.4,0.75737]
[1740430747777,1.7223,2641.9,2641.1,7.5771]
[1740430748075,5.68736,2641.9,2641.6,0.75731]
[1740430748277,5.68736,2641.9,2641.2,1.8936]